Cogmind - Beta 12 *** ADVENTURER MODE // 2023.09.10 @ 07:31:45 Player: Auto Result: Destroyed by L-31 Rogue with Katana Performance ------------- Evolutions (2) 1000 Regions Visited (9) 1800 Robots Destroyed (93) 465 Value Destroyed (3847) 3847 Prototype IDs (25) 500 Alien Tech Used (0) 0 Bonus (2018) 2018 TOTAL SCORE: 9630 Bonus ------- High Alert Combat Kills 761 Follower Combat Kills 241 Entered Garrisons 200 Used RIF Installer 1000 Aligned with FarCom 300 Friendly Fire -484 Cogmind --------- Core Integrity 0/550 Matter 233/300 Energy 93/100 System Corruption 0% Temperature Cool (9) Movement Treading (160) Location -8/Storage Parts ------- > --- POWER (2) -------- (None) > --- PROPULSION (4) --- Light Treads Light Treads > --- UTILITY (2) ------ (None) > --- WEAPON (3) ------- (None) > --- INVENTORY (5) ---- Light Treads Relay Coupler [Grunt] (26) Relay Coupler [Sentry] (22) Improved Remote Datajack Improved Remote Datajack Peak State ------------ > --- POWER ------------ Light Deuterium Engine Neutrino Core > --- PROPULSION ------- Aluminum Leg Aluminum Leg Carbon-fiber Leg Carbon-fiber Leg > --- UTILITY ---------- Medium Storage Unit Improved Weapon Cycler > --- WEAPON ----------- Gauss Cannon Enhanced Gauss Cannon Longsword +1 > --- INVENTORY -------- Aluminum Leg Carbon-fiber Leg Improved Heat Sink Hacking Suite Particle Gun Heavy Laser Gauss Rifle Gauss Cannon Improved Remote Datajack Improved Remote Datajack [Rating: 45] Favorites ----------- Power Improved Ion Engine Engine Improved Ion Engine Power Core Neutrino Core Propulsion Aluminum Leg Treads Light Treads Leg Aluminum Leg Utility Medium Storage Unit Device Hardlight Generator Storage Medium Storage Unit Hackware Relay Coupler [Grunt] Protection Light Armor Plating Weapon Longsword +1 Energy Gun Particle Gun Ballistic Gun Heavy Assault Rifle Ballistic Cannon Gauss Cannon Launcher Advanced EMP Blaster Special Weapon Mining Laser Slashing Weapon Longsword +1 Special Melee Weapon Datajack Build | -11 -10 -10 -9 -9 -9 -8 -8 -8 -8 ------- Run | Jun Mat Min Mat Min Exi Min Mat Gar Sto Slots Evolved 4 | . . . 2 . . . 2 . . Power 1 | . . . . . . . 1 . . Propulsion 2 | . . . 2 . . . . . . Utility . | . . . . . . . . . . Weapon 1 | . . . . . . . 1 . . Parts Attached 106 | 6 2 8 36 2 1 3 4 32 12 Power 13 | 1 . 1 3 . . . 2 4 2 Engine 11 | 1 . 1 3 . . . 2 2 2 Core 2 | . . . . . . . . 2 . Reactor . | . . . . . . . . . . Propulsion 39 | 2 . 5 12 1 . 2 . 10 7 Treads 5 | . . . . . . . . . 5 Leg 34 | 2 . 5 12 1 . 2 . 10 2 Wheel . | . . . . . . . . . . Hover . | . . . . . . . . . . Flight . | . . . . . . . . . . Utility 18 | 1 2 1 6 . . . . 8 . Device 7 | . 2 . 3 . . . . 2 . Storage 3 | 1 . . 1 . . . . 1 . Processor . | . . . . . . . . . . Hackware 3 | . . . . . . . . 3 . Protection 5 | . . 1 2 . . . . 2 . Artifact . | . . . . . . . . . . Weapon 36 | 2 . 1 15 1 1 1 2 10 3 Energy Gun 6 | 1 . 1 2 . . . 1 1 . Energy Cannon . | . . . . . . . . . . Ballistic Gun 15 | 1 . . 10 1 . 1 . 1 1 Ballistic Cannon 8 | . . . . . . . 1 6 1 Launcher 1 | . . . . . . . . . 1 Special Weapon 1 | . . . . . . . . 1 . Impact Weapon . | . . . . . . . . . . Slashing Weapon 1 | . . . . . 1 . . . . Piercing Weapon . | . . . . . . . . . . Special Melee Weapon 4 | . . . 3 . . . . 1 . Unidentified Prototypes 1 | . . . . . . . . . 1 Parts Lost 13 | . . 1 2 1 . . . 4 5 Power 2 | . . . . . . . . 1 1 Propulsion 5 | . . . 1 1 . . . 1 2 Utility 2 | . . . . . . . . 2 . Weapon 4 | . . 1 1 . . . . . 2 Highest Loss Streak 3 | . . 1 1 1 . . . 2 3 To Critical Strikes . | . . . . . . . . . . Average Slot Usage (%) 96 | . 98 99 97 94 88 90 100 97 92 Engine 12 | . 14 14 11 11 11 11 18 13 7 Core 2 | . . . . . . . . 4 8 Leg 35 | . 28 28 41 38 33 34 36 35 33 Device 5 | . 12 . 6 11 11 11 9 3 8 Storage 10 | . 14 14 11 11 11 11 9 9 8 Protection 3 | . . 13 4 . . . . 3 . Energy Gun 6 | . 14 13 5 11 11 9 5 3 . Ballistic Gun 7 | . 14 14 15 11 3 1 9 1 . Ballistic Cannon 4 | . . . . . . . 3 11 16 Slashing Weapon 4 | . . . . . 7 11 9 9 8 Naked Turns 16 | . . . . . . . . . 16 Heaviest Build 57 | 14 15 17 28 28 28 29 42 53 57 Greatest Support 60 | 20 20 25 45 40 30 50 50 55 60 Greatest Overweight (x) 3 | 3 . . . . . . . 1 1 Average Overweight (x) . | . . . . . . . . . . Largest Inventory Capacity 10 | 8 8 8 10 10 10 10 10 10 10 Average Capacity 9 | 7 8 8 9 10 10 10 10 10 9 Most Carried 10 | 2 7 7 10 10 10 10 10 10 10 Average Carried 8 | 1 5 6 8 9 10 10 9 9 9 Final Capacity 10 | 8 8 8 10 10 10 10 10 10 5 Final Carried 10 | 2 6 6 10 10 10 10 10 10 5 Class Distribution -------------------- 56% | Mutant 43% | Scavenger-Mutant Dominant Class ---------------- Mutant | -10/Materials Mutant | -10/Mines Mutant | -9/Materials Mutant | -9/Mines Mutant | -9/Exiles Mutant | -8/Mines Scavenger-Mutant | -8/Materials Scavenger-Mutant | -8/Garrison Scavenger-Mutant | -8/Storage Resources | -11 -10 -10 -9 -9 -9 -8 -8 -8 -8 ----------- Run | Jun Mat Min Mat Min Exi Min Mat Gar Sto Matter Collected 2338 | 107 101 239 838 84 . 40 30 773 126 Remotely . | . . . . . . . . . . Salvage Created 3600 | . 58 123 1143 205 . 127 112 977 855 Parts 213 | . 3 5 105 8 . 8 4 47 33 Haulers Intercepted . | . . . . . . . . . . Recyclers Shooed 3 | . . . . 1 . 2 . . . Parts Field Recycled . | . . . . . . . . . . Retrieved Matter . | . . . . . . . . . . Parts Self-Destructed . | . . . . . . . . . . Prevented . | . . . . . . . . . . Kills | -11 -10 -10 -9 -9 -9 -8 -8 -8 -8 ------- Run | Jun Mat Min Mat Min Exi Min Mat Gar Sto Combat Hostiles Destroyed 87 | . 1 9 32 5 . 2 2 22 14 Melee 33 | . . . . . . 2 2 19 10 Guns 47 | . 1 9 32 5 . . . . . Cannons 4 | . . . . . . . . 3 1 AOE 3 | . . . . . . . . . 3 Classes Destroyed 13 | . 1 3 5 1 . 1 . 1 1 Worker 2 | . . . 1 . . 1 . . . Builder 1 | . . . 1 . . . . . . Recycler 2 | . . . . . . . . . 2 Operator 1 | . . . 1 . . . . . . Watcher 3 | . . . 3 . . . . . . Swarmer 21 | . . 3 14 . . . . 4 . Grunt 37 | . 1 . 9 4 . 1 2 10 10 Brawler 1 | . . . . 1 . . . . . Duelist 2 | . . . . . . . . 2 . Sentry 19 | . . . 9 . . . . 6 4 Demolisher 1 | . . 1 . . . . . . . Hunter 3 | . . . . . . 1 . 2 . Assembled 5 | . . 5 . . . . . . . Best Kill Streak 7 | . 1 3 7 3 . 3 2 4 5 Combat Bots Only 7 | . 1 3 7 3 . 2 2 4 5 Max Kills in Single Turn 4 | . 1 2 2 1 . 1 1 1 4 Gunslinging 1 | . . 1 . . . . . . . Exploded 3 | . . . . . . . . . 3 Melee 1 | . . . . . . 1 1 1 1 Uniques/NPCs Destroyed . | . . . . . . . . . . Combat | -11 -10 -10 -9 -9 -9 -8 -8 -8 -8 -------- Run | Jun Mat Min Mat Min Exi Min Mat Gar Sto Damage Taken 4668 | . 47 503 1139 213 . 34 8 1246 1478 Core 858 | . 14 105 155 22 . . . 142 420 Absorbed by Shields 128 | . . . 92 . . . 4 32 . Core Remaining (%) 69 | 100 . 52 . . . 55 . . . Volleys Fired 281 | . 3 26 111 17 . . . 115 9 Largest 2 | . 2 2 2 2 . . . 2 2 Hottest 113 | . 70 70 88 88 . . . 113 105 Shots Fired 450 | . 6 49 209 34 . . . 139 13 Gun 387 | . 6 49 209 34 . . . 84 5 Cannon 61 | . . . . . . . . 53 8 Launcher . | . . . . . . . . . . Special 2 | . . . . . . . . 2 . Kinetic 292 | . 3 25 146 17 . . . 88 13 Thermal 158 | . 3 24 63 17 . . . 51 . Explosive . | . . . . . . . . . . Electromagnetic . | . . . . . . . . . . Robot Hit Streak 36 | . 4 8 25 36 . . . 10 9 Robot Miss Streak 3 | . 1 2 2 2 . . . 3 2 Penetration Max 1 | . . . . . . . . . 1 Secondary Targets 3 | . . 3 . . . . . . . Max Gunslinging Chain 1 | . . 1 . . . . . . . Shots Hit Robots 358 | . 4 34 156 28 . 7 4 90 35 Core Hits 139 | . 3 15 53 9 . 3 2 29 25 Critical Kills . | . . . . . . . . . . Critical Parts Destroyed 1 | . . . . . . . . . 1 Critical Strikes 10 | . . . . . . 1 . 6 3 Destroy 1 | . . . . . . . . . 1 Blast 1 | . . . . . . . . 1 . Sever 8 | . . . . . . 1 . 5 2 Melee Attacks 151 | . . . 4 . . 7 4 110 26 Impact . | . . . . . . . . . . Slashing 137 | . . . . . . 7 4 100 26 Piercing . | . . . . . . . . . . Sneak Attacks 14 | . . . 4 . . 1 . 8 1 Combat Hostiles 5 | . . . . . . . . 5 . Follow-up Attacks . | . . . . . . . . . . Damage Inflicted 9423 | . 48 439 2160 433 . 347 206 3478 2312 Guns 3287 | . 48 439 2160 433 . . . 89 118 Cannons 704 | . . . . . . . . 549 155 Explosions 791 | . . . . . . . . . 791 Melee 4634 | . . . . . . 347 206 2840 1241 Ramming 7 | . . . . . . . . . 7 Kinetic 2907 | . 23 229 1575 187 . . . 620 273 Thermal 1084 | . 25 210 585 246 . . . 18 . Explosive 791 | . . . . . . . . . 791 Electromagnetic . | . . . . . . . . . . Impact . | . . . . . . . . . . Slashing 4634 | . . . . . . 347 206 2840 1241 Piercing . | . . . . . . . . . . Highest Corruption 1 | . 1 1 . . . . . . . Average Corruption 1 | . 1 1 . . . . . . . Corruption Purged . | . . . . . . . . . . Corruption Blocked . | . . . . . . . . . . Effects 9 | . 1 8 . . . . . . . Message Errors 2 | . 1 1 . . . . . . . Matter Fused 1 | . . 1 . . . . . . . Energy Discharges 3 | . . 3 . . . . . . . Data Loss (minor) 2 | . . 2 . . . . . . . Weapon Failures 1 | . . 1 . . . . . . . Overload Shots . | . . . . . . . . . . Overflow Damage 288 | . . . . . . 53 . 103 132 Projectiles . | . . . . . . . . . . Explosions 45 | . . . . . . . . . 45 Melee 243 | . . . . . . 53 . 103 87 Knockbacks 10 | . . . . . . . . 9 1 Impact . | . . . . . . . . . . Kinetic 10 | . . . . . . . . 9 1 Secondary . | . . . . . . . . . . Self-Inflicted Damage 132 | . . . . . . . . . 132 Shots 2 | . . . . . . . . . 2 Rammed 2 | . . . . . . . . . 2 Targets Rammed 2 | . . . . . . . . . 2 Kicked . | . . . . . . . . . . Crushed . | . . . . . . . . . . Highest Temperature 300 | . 2 90 244 300 . . . 291 234 Average Temperature 71 | . 2 28 37 125 . . . 90 86 Received Heat Transfer 1703 | . 33 . 480 93 . . 6 542 549 Effects 2 | . . . . . . . . 2 . Interference 2 | . . . . . . . . 2 . Siege Activations . | . . . . . . . . . . Robots Corrupted . | . . . . . . . . . . Combat Hostiles . | . . . . . . . . . . Parts Fried . | . . . . . . . . . . Impact Corruptions . | . . . . . . . . . . Robots Melted . | . . . . . . . . . . Combat Hostiles . | . . . . . . . . . . Parts Melted 3 | . . 2 . 1 . . . . . Heat Transferred 2652 | . 74 593 1356 592 . . . 37 . Parts Sabotaged . | . . . . . . . . . . Parts Stolen . | . . . . . . . . . . Parts Stripped . | . . . . . . . . . . Power Chain Reactions . | . . . . . . . . . . Missiles Intercepted . | . . . . . . . . . . Alert | -11 -10 -10 -9 -9 -9 -8 -8 -8 -8 ------- Run | Jun Mat Min Mat Min Exi Min Mat Gar Sto Peak Influence 1985 | . 89 119 382 207 . 145 50 1985 1138 Initial 833 | . . 29 . 36 . . . 28 833 Average 407 | . 48 38 205 59 . 12 13 789 1009 Maximum Alert Level 5 | . . . 1 1 . . . 5 4 Low Security (%) 45 | 100 100 100 36 99 . 100 100 10 . Level 1 25 | . . . 63 . . . . 25 . Level 2 5 | . . . . . . . . 15 . Level 3 10 | . . . . . . . . 18 68 Level 4 7 | . . . . . . . . 15 31 Level 5 5 | . . . . . . . . 15 . High Security . | . . . . . . . . . . Max Security . | . . . . . . . . . . Squads Dispatched 13 | . 2 . 6 . . . 1 . 4 Investigation 6 | . 2 . 3 . . . 1 . . Extermination . | . . . . . . . . . . Reinforcement 5 | . . . 3 . . . . . 2 Assault 2 | . . . . . . . . . 2 Garrison . | . . . . . . . . . . Intercept . | . . . . . . . . . . Searches Triggered . | . . . . . . . . . . Construction Impeded . | . . . . . . . . . . Haulers Reinforced . | . . . . . . . . . . Active Scanning Responses . | . . . . . . . . . . Cargo Convoy Interrupts . | . . . . . . . . . . Stealth | -11 -10 -10 -9 -9 -9 -8 -8 -8 -8 --------- Run | Jun Mat Min Mat Min Exi Min Mat Gar Sto Distress Signals 7 | . . . 5 . . . 1 . 1 Communications Jammed . | . . . . . . . . . . Distress Signals . | . . . . . . . . . . Times Spotted 160 | . 5 22 49 8 . 5 3 40 28 Peak Tracking Total 13 | . 3 12 7 3 . 3 4 4 13 Tactical Retreats 16 | . 1 1 . 3 . 2 . 8 1 Traps | -11 -10 -10 -9 -9 -9 -8 -8 -8 -8 ------- Run | Jun Mat Min Mat Min Exi Min Mat Gar Sto Traps Triggered 6 | . 1 . 1 . . . . 4 . Indirectly . | . . . . . . . . . . Trap Hack Attempts 56 | . . . 56 . . . . . . Triggered 1 | . . . 1 . . . . . . Disarmed 1 | . . . 1 . . . . . . Reprogrammed 10 | . . . 10 . . . . . . Reused 4 | . . . 4 . . . . . . Traps Extracted . | . . . . . . . . . . Installed . | . . . . . . . . . . Triggered 4 | . . . 4 . . . . . . Exploded 1 | . . . . . 1 . . . . Machines | -11 -10 -10 -9 -9 -9 -8 -8 -8 -8 ---------- Run | Jun Mat Min Mat Min Exi Min Mat Gar Sto Machines Disabled 8 | . . . . . . . . 5 3 Max in Single Turn 3 | . . . . . . . . 1 3 Garrison Relay 5 | . . . . . . . . 5 . Machines Repaired . | . . . . . . . . . . Machines Sabotaged . | . . . . . . . . . . Overloaded Fab Kills . | . . . . . . . . . . Hacking | -11 -10 -10 -9 -9 -9 -8 -8 -8 -8 --------- Run | Jun Mat Min Mat Min Exi Min Mat Gar Sto Machines Accessed 18 | . 4 . 7 . 1 . 2 1 3 Terminals 11 | . 4 . 3 . . . 1 1 2 Fabricators . | . . . . . . . . . . Repair Stations . | . . . . . . . . . . Recycling Units 3 | . . . 2 . . . . . 1 Scanalyzers 2 | . . . 2 . . . . . . Garrison Access 1 | . . . . . . . 1 . . Total Hacks 60 | . 21 . 22 . 1 . 6 2 8 Successful 29 | . 7 . 13 . 1 . 2 1 5 Failed 31 | . 14 . 9 . . . 4 1 3 Catastrophic 1 | . . . . . . . 1 . . Database Lockouts . | . . . . . . . . . . Manual 46 | . 21 . 16 . 1 . 4 . 4 Terminals 43 | . 21 . 12 . . . 4 2 4 Fabricators . | . . . . . . . . . . Repair Stations . | . . . . . . . . . . Recycling Units 10 | . . . 6 . . . . . 4 Scanalyzers 4 | . . . 4 . . . . . . Garrison Access 2 | . . . . . . . 2 . . Terminal Hacks 8 | . 3 . 2 . 1 . . 1 1 Open Door 1 | . . . . . . . . . 1 Branch Access Points 2 | . 1 . 1 . . . . . . Emergency Access Points 1 | . . . . . . . . 1 . Terminal Index 2 | . 1 . 1 . . . . . . Recycling Unit Index 1 | . 1 . . . . . . . . EX-Prototype ID Bank 1 | . . . . . 1 . . . . Fabricator Hacks . | . . . . . . . . . . Repair Station Hacks . | . . . . . . . . . . Recycling Unit Hacks 4 | . . . 3 . . . . . 1 Retrieve Components 4 | . . . 3 . . . . . 1 Scanalyzer 2 | . . . 2 . . . . . . Insert Component 1 | . . . 1 . . . . . . Analyze 1 | . . . 1 . . . . . . Garrison Access Hacks 1 | . . . . . . . 1 . . Unlock Access 1 | . . . . . . . 1 . . Unauthorized Hacks 14 | . 4 . 6 . . . 1 . 3 Terminals 9 | . 4 . 3 . . . 1 . 1 Botnet 8 | . 4 . 3 . . . . . 1 Search 1 | . . . . . . . 1 . . Fabricators . | . . . . . . . . . . Repair Stations . | . . . . . . . . . . Recycling Units 3 | . . . 1 . . . . . 2 Reject 2 | . . . 1 . . . . . 1 Recyclers 1 | . . . . . . . . . 1 Scanalyzers 2 | . . . 2 . . . . . . Extract 2 | . . . 2 . . . . . . Garrison Access . | . . . . . . . . . . Data Cores Recovered . | . . . . . . . . . . Used . | . . . . . . . . . . Hacking Detections 11 | . 3 . 4 . . . 2 . 2 Full Trace Events 3 | . 2 . 1 . . . . . . Feedback Events . | . . . . . . . . . . Feedback Blocked . | . . . . . . . . . . Robot Schematics Acquired . | . . . . . . . . . . Robots Built . | . . . . . . . . . . Authchips . | . . . . . . . . . . Time . | . . . . . . . . . . Total Robot Build Rating . | . . . . . . . . . . Part Schematics Acquired 5 | . . . 5 . . . . . . Parts Built . | . . . . . . . . . . Authchips . | . . . . . . . . . . Time . | . . . . . . . . . . Total Part Build Rating . | . . . . . . . . . . Parts Repaired . | . . . . . . . . . . Time . | . . . . . . . . . . Parts Recycled . | . . . . . . . . . . Recycled Matter . | . . . . . . . . . . Retrieved Matter . | . . . . . . . . . . Retrieved Components 19 | . . . 10 . . . . . 9 Parts Scanalyzed 1 | . . . 1 . . . . . . Part Schematics Acquired . | . . . . . . . . . . Parts Damaged . | . . . . . . . . . . Bothacking | -11 -10 -10 -9 -9 -9 -8 -8 -8 -8 ------------ Run | Jun Mat Min Mat Min Exi Min Mat Gar Sto Used RIF Installer 2 | . . . . . . . . 2 . Alert ID Control 1 | . . . . . . . . 1 . Robots Hacked 8 | . . . 2 . . . . 6 . Non-combat 2 | . . . 2 . . . . . . Combat 6 | . . . . . . . . 6 . Robot Hacks Applied 8 | . . . 2 . . . . 6 . no_distress 1 | . . . 1 . . . . . . find_recycling 1 | . . . 1 . . . . . . go_dormant 1 | . . . . . . . . 1 . formatsys_high 5 | . . . . . . . . 5 . Relay Couplers Released 23 | . . . . . . . . 23 . Machine Destruction 23 | . . . . . . . . 23 . Attached 3 | . . . . . . . . 3 . Fabnet Peak Effective % . | . . . . . . . . . . Robots Rewired . | . . . . . . . . . . Allies Hacked . | . . . . . . . . . . Hacks Repelled . | . . . . . . . . . . Allies | -11 -10 -10 -9 -9 -9 -8 -8 -8 -8 -------- Run | Jun Mat Min Mat Min Exi Min Mat Gar Sto Total Allies 6 | . . . . 1 . . . 5 . Largest Group 2 | . . . . 1 . . . 2 . Highest-Rated Group 32 | . . . . 31 . . . 32 . Highest-Rated Ally 31 | . . . . 31 . . . 16 . Total Orders . | . . . . . . . . . . Ally Attacks 41 | . . . . . . . . 41 . Total Damage 634 | . . . . . . . . 634 . Kills 7 | . . . . . . . . 7 . Allies Corrupted . | . . . . . . . . . . Allies Melted 1 | . . . . . . . . 1 . Intel | -11 -10 -10 -9 -9 -9 -8 -8 -8 -8 ------- Run | Jun Mat Min Mat Min Exi Min Mat Gar Sto Robot Analysis Total . | . . . . . . . . . . Derelict Logs Recovered 4 | . . 3 . 1 . . . . . Drone Launches . | . . . . . . . . . . Drone Recoveries . | . . . . . . . . . . Exploration | -11 -10 -10 -9 -9 -9 -8 -8 -8 -8 ------------- Run | Jun Mat Min Mat Min Exi Min Mat Gar Sto Turns Passed 8938 | 69 186 1094 2219 744 408 456 221 3000 541 Spaces Moved 4888 | 46 132 640 1171 503 205 268 158 1553 212 Core 39 | 12 . . . . . . . . 27 Treads 3 | . . . . . . . . . 3 Legs 4846 | 34 132 640 1171 503 205 268 158 1553 182 Wheels . | . . . . . . . . . . Hover . | . . . . . . . . . . Flight . | . . . . . . . . . . Fastest Speed 50 | 50 120 120 120 120 120 120 120 120 50 Average Speed 124 | 121 120 120 120 120 120 120 120 127 159 Slowest Speed 200 | 200 120 120 120 120 120 120 120 190 190 Overloaded Moves . | . . . . . . . . . . Propulsion Burnouts . | . . . . . . . . . . Robots Hopped . | . . . . . . . . . . Cave-ins Triggered . | . . . . . . . . . . Exploration Rate (%) 55 | 4 30 90 94 82 60 58 15 97 29 Regions Visited 9 Branch Regions 5 Pre-discovered Areas 1 | . . 1 . . . . . . . Known Exits Taken 3 | . 1 . 1 . . . 1 . . Unknown Exits Taken 5 | 1 . 1 . 1 1 1 . . . Scrap Searched 3 | . . 1 . 2 . . . . . Spaces Dug 16 | . . . . . . . . 16 . Terrain Destroyed 46 | . . . . . . . . 17 29 Melee 8 | . . . . . . . . 8 . Projectile 12 | . . . . . . . . 9 3 AOE 26 | . . . . . . . . . 26 Terrain Rammed 1 | . . . . . . . . . 1 Walls Destroyed . | . . . . . . . . . . Machines Disabled . | . . . . . . . . . . Actions | -11 -10 -10 -9 -9 -9 -8 -8 -8 -8 --------- Run | Jun Mat Min Mat Min Exi Min Mat Gar Sto Total 7186 | 59 153 912 1785 612 367 396 185 2343 374 Wait 1577 | . 10 238 367 88 161 116 17 475 105 Move 4878 | 45 131 639 1170 502 204 267 157 1551 212 Hop . | . . . . . . . . . . Pick Up 56 | 8 6 1 18 1 . 1 2 17 2 Fast Attach 15 | . . . 3 . 1 1 . 2 8 Attach 23 | 6 1 1 4 . . . 2 7 2 Detach . | . . . . . . . . . . Swap 68 | . 1 7 29 2 . 2 2 23 2 Drop 58 | . 1 . 23 2 1 2 1 23 5 Fire 281 | . 3 26 111 17 . . . 115 9 Melee 151 | . . . 4 . . 7 4 110 26 Ram 1 | . . . . . . . . . 1 Kick . | . . . . . . . . . . Crush 2 | . . . . . . . . . 2 Escape Stasis 15 | . . . . . . . . 15 . Rewire 5 | . . . . . . . . 5 . Trap 56 | . . . 56 . . . . . . Miscellaneous . | . . . . . . . . . . Route ------- -11/Junkyard -10/Materials (discovered 2 exits: *Min x2) -10/Mines (discovered 2 exits: *Mat x2) -9/Materials (discovered 5 exits: *Mat x3 / *Min x2) -9/Mines -9/Exiles -8/Mines -8/Materials -8/Garrison (discovered 3 exits: *Sto x3) -8/Storage History --------- Turn | Location | Event 3 | -11/Junkyard | Discovered new exit (range 16) 70 | -11/Junkyard | Entered Materials 202 | -10/Materials | Discovered new exit (range 16) 217 | -10/Materials | Identified exit to Mines 256 | -10/Materials | Entered Mines 283 | -10/Mines | Assembled infested the area 305 | -10/Mines | Build established: Mutant 325 | -10/Mines | Learned location of Mines (-9) 426 | -10/Mines | Learned Materials trap positions 523 | -10/Mines | Discovered new exit (range 7) 593 | -10/Mines | Learned Materials security intel 1305 | -10/Mines | Discovered new exit (range 4) 1350 | -10/Mines | Entered Materials 1350 | -9/Materials | Evolved 2 slots: Propulsion x2 1351 | -9/Materials | Loaded intel: 13 trap records 1575 | -9/Materials | Destroyed 7 combat bots 1789 | -9/Materials | Build established: Scavenger-Mutant 2394 | -9/Materials | Discovered new exit (range 7) 2545 | -9/Materials | Discovered new exit (range 13) 2839 | -9/Materials | Discovered new exit (range 9) 3070 | -9/Materials | Discovered new exit (range 15) 3123 | -9/Materials | Build established: Mutant 3272 | -9/Materials | Discovered new exit (range 15) 3526 | -9/Materials | Identified exit to Mines 3569 | -9/Materials | Entered Mines 3626 | -9/Mines | Met a Derelict bent on vengeance 4030 | -9/Mines | Received a Mining Laser from a helpful Derelict 4207 | -9/Mines | Learned Materials emergency access door positions 4308 | -9/Mines | Deemed a non-threat by the Exiles lab entrance 4308 | -9/Mines | Discovered new exit (range 5) 4313 | -9/Mines | Entered Exiles 4342 | -9/Exiles | Met 8R-AWN 4364 | -9/Exiles | Met EX-HEX 4396 | -9/Exiles | Met EX-BIN 4409 | -9/Exiles | Aligned with FarCom system 4411 | -9/Exiles | Given EX-Vault access code 4439 | -9/Exiles | Opened EX-Vault 4447 | -9/Exiles | Found Longsword +1 4473 | -9/Exiles | Warned to stay clear of 0b10 Research branches 4490 | -9/Exiles | Exiles lab attacked by MAIN.C 4559 | -9/Exiles | Discovered new exit (range 14) 4721 | -9/Exiles | Left Exiles lab with Longsword +1 4721 | -9/Exiles | Entered Mines 5128 | -8/Mines | Discovered new exit (range 12) 5177 | -8/Mines | Entered Materials 5177 | -8/Materials | Evolved 2 slots: Power x1, Weapon x1 5397 | -8/Materials | Identified exit to Garrison 5398 | -8/Materials | Entered Garrison 5466 | -8/Garrison | Build established: Scavenger-Mutant 5616 | -8/Garrison | Triggered checkpoint 5726 | -8/Garrison | Garrison Relay disabled 6423 | -8/Garrison | Triggered checkpoint 6571 | -8/Garrison | Discovered new exit (range 14) 6585 | -8/Garrison | Installed Relay Interface Framework 6681 | -8/Garrison | Garrison Relay disabled 6694 | -8/Garrison | Triggered checkpoint 6826 | -8/Garrison | Triggered checkpoint 6864 | -8/Garrison | Triggered checkpoint 6885 | -8/Garrison | Triggered checkpoint 6996 | -8/Garrison | Triggered checkpoint 7040 | -8/Garrison | Discovered new exit (range 13) 7054 | -8/Garrison | Expanded RIF knowledge: Alert ID Control 7282 | -8/Garrison | Triggered checkpoint 7413 | -8/Garrison | Discovered new exit (range 11) 7604 | -8/Garrison | Triggered checkpoint 7655 | -8/Garrison | Garrison Relay disabled 7812 | -8/Garrison | Triggered checkpoint 7812 | -8/Garrison | Garrison Relay disabled 7912 | -8/Garrison | Garrison Relay disabled 8138 | -8/Garrison | Build established: Mutant 8398 | -8/Garrison | Entered Storage 8798 | -8/Storage | First assault squad dispatched 8892 | -8/Storage | Build established: Scavenger-Mutant 8896 | -8/Storage | Core integrity fell below 50% 8896 | -8/Storage | Released all parts (7) 8926 | -8/Storage | Lost 3 parts (1n2w) 8928 | -8/Storage | Core integrity fell below 20% 8939 | -8/Storage | Destroyed by L-31 Rogue with Katana Last Messages --------------- 08901_ 29 Matter crushed. 08901_ U-05 Engineer lays Concrete. 08907_ Slammed into Door. 08907_ Destabilizing: Core damaged (-11). 08911_ Connecting with Door Terminal... >>Open(Door) Sealed Heavy Doors opened. 08912_ Acquired Lgt. Treads. 08924_ Lgt. Treads severed. 08925_ L-31 Rogue suffers critical hit (Destroy). 08925_ Destroyed Imp. Aluminum Leg. 08927_ Slug penetrates L-31 Rogue. 08929_ Lgt. Treads severed. 08929_ Acquired Lgt. Treads. 08935_ Critical hit (Burn: +37). 08935_ Slammed into L-31 Rogue. 08937_ Gauss Rifle severed. 08937_ Slammed into L-31 Rogue. 08938_ Lgt. Treads destroyed. 08939_ Acquired Lgt. Treads. Map ----- +----------------------------------------------------+ | ?????????????????????????????????????????????????? | | ?????????????????????????????????????????????????? | | ?????????????????????????????????????????????????? | | ?????????????????????????????????????????????????? | | ?????????????????????????????????????????????????? | | ?????????????????????????????????????????????????? | | ?????????????????????????????????????????????????? | | ?????????????????????????????????????????????????? | | ?????????????????????????????????????????????????? | | ?????????????????????????????????????????????????? | | ?????????????????????????????????????????????????? | | ?????????????????????????????????????????????????? | | ?????????????????????????????????????????????????? | | ?????????????????????????????????????????????????? | | ?????????????????????????????????????????????????? | | ?????????????????????????????????????????????????? | | ?????????????????????????????????????????????????? | | ?????????????????????????????????????????????????? | | ???????????????#####?????????????????????????????? | | ???????????????# #?????????????????????????????? | | ???????????????# #?????????????????????????????? | | ???????????????# ####??????????????????????????? | | ???????????????# ##T######?????????????????????? | | ???????????????# # g===#?????????????????????? | | ???????????????+ + gilll#?????????????????????? | | ???????????????# # ig g@l#?????????????????????? | | ???????????????# #########?????????????????????? | | ???????????????# #??????######?????????????????? | | ???????????????# #?###### ##????????????????? | | ???????????????# #?#""" " ##???????????????? | | ???############# ###"Y"# #???????????????? | | ???# # # *==[= [%[ #???????????????? | | ???# # # [! [!*!!! ##???????????????? | | ???# # # = !!= #???????????????? | | ???# + +% %* !!==/ #???????????????? | | ???# # # %= ==! ##???????????????? | | ???# # #### * ##????????????????? | | ???# # #??## #######?????????????????? | | ???######+###### ##??######????????????????????? | | ????????# #???# #????????????????????????????? | | ????????# #???# #????????????????????????????? | | ????????# #???# #????????????????????????????? | | ######### #???# #######??????????????????????? | | #???# ??????????????????????? | | % % ######## ??????????????????????? | | %% ???????????????????????? | | #####+#### ############??????????????????????? | | # [ # #% #???????????????????????? | | # """""* +% !%+!! #???????????????????????? | | # """"" ###+###% """ +???????????????????????? | +----------------------------------------------------+ Best States ------------- Heat Dissipation 42 Energy Generation 32 Energy Capacity 480 Matter Stores 300 Matter Capacity 300 Sight Range 16 Terrain Scan Density 10 Armor Coverage 150 Resistance: KI 20 Resistance: TH 20 Resistance: EX 20 Resistance: EM 20 Resistance: I 20 Resistance: S 20 Resistance: P 20 Weapon Cycling 20 Evasion (%) 55 Recoil Reduction 3 Force Boost 20 Offensive Hacking 10 Relay Coupler Types 1 Relay Coupler Value 29 Item Schematics ----------------- Imp. Hover Unit | -9/Materials | Extracted Wheel | -9/Materials | Extracted Structural Scanner | -9/Materials | Extracted Imp. Ion Engine | -9/Materials | Extracted Imp. EM Shotgun | -9/Materials | Extracted Robot Schematics ------------------ None Fabricated ------------ Nothing Alien Tech Used ----------------- None Achievements -------------- None Challenges ------------ None Game ------ Seed MyomerPlatingDriver Manual? 0 Play Time 01:06:04 Cumulative 51.7 hours Start 2023.09.10 @ 06:22:05 End 2023.09.10 @ 07:31:45 Sessions 1 Manual Loads 0 Difficulty Adventurer Special Mode None Game No. 25 Rogue 0 Adventurer 25 Explorer 0 Win Type - Total 0 Types 0/0/0/0/0/0/0/0/0 Lore% 15 Gallery% 31 Achievement% 28 Wizard Run 0 Options --------- ASCII 0 Keyboard 0 Movement Mouse Keybinds 0 Fullscreen 1 Font 18/SmallcapsGlow Map View 76x50 Tactical HUD 1 Map Filters NONE Filters NONE Steam 1 RUN: cebaa845-15e0-4ac7-a903-5b9cb5f50f86